bitfinex/quotes_BTCUSD_20240715
["timestamp","ask_amount","ask_price","bid_price","bid_amount"]
[1721017796456,0.10465363,62766.0,62765.0,0.000913]
[1721017796676,0.40039841,62766.0,62765.0,0.000913]
[1721017796913,0.56768383,62766.0,62765.0,0.000913]
[1721017798021,1.42802083,62766.0,62765.0,0.000913]
[1721017798162,1.42853876,62766.0,62765.0,0.000913]
[1721017798389,1.45191724,62766.0,62765.0,0.000913]
[1721017798591,1.30853876,62766.0,62765.0,0.000913]
[1721017799014,1.57191626,62766.0,62765.0,0.000913]
[1721017799473,1.57189894,62766.0,62765.0,0.000913]
[1721017799682,0.84002353,62765.0,62764.0,0.005087]
[1721017799889,1.0011346,62765.0,62764.0,0.005087]
[1721017800108,0.86477716,62765.0,62764.0,0.005087]
[1721017800324,0.59434892,62765.0,62764.0,0.005087]
[1721017800582,0.16417292,62765.0,62764.0,0.005087]
[1721017800820,0.16110939,62765.0,62764.0,0.005087]
[1721017801041,0.28056945,62765.0,62764.0,0.005087]
[1721017801503,0.16110939,62765.0,62764.0,0.005087]
[1721017802181,0.16032828,62765.0,62764.0,0.005087]
[1721017802636,0.16032828,62765.0,62764.0,0.0128171]
[1721017802962,0.16089196,62765.0,62764.0,0.0128171]
[1721017804144,0.16089196,62765.0,62764.0,0.1562111]
[1721017804375,0.38729196,62765.0,62764.0,0.1562111]
[1721017804621,0.38729196,62765.0,62764.0,0.2762111]
[1721017805288,0.25115363,62765.0,62764.0,0.2762111]
[1721017805522,0.38754873,62765.0,62764.0,0.2762111]
[1721017805972,0.38754873,62765.0,62764.0,0.5629991]
[1721017806417,0.38754873,62765.0,62764.0,0.1562111]
[1721017806663,0.38754873,62765.0,62764.0,0.0128171]
[1721017807855,0.53094073,62765.0,62764.0,0.0128171]
[1721017808570,0.39454563,62765.0,62764.0,0.0128171]
[1721017808816,0.38800755,62765.0,62764.0,0.0128171]
[1721017810513,0.39107108,62765.0,62764.0,0.0128171]
[1721017811915,0.39061225,62765.0,62764.0,0.0128171]
[1721017812159,0.24872529,62765.0,62764.0,0.0128171]
[1721017812392,0.38511384,62765.0,62764.0,0.1562111]
[1721017812856,0.5046128,62765.0,62764.0,0.1562111]
[1721017813092,0.38511384,62765.0,62764.0,0.1562111]
[1721017813530,0.38565028,62765.0,62764.0,0.1562111]
[1721017813756,0.38565028,62765.0,62764.0,0.4429991]
[1721017814736,0.5051594,62765.0,62764.0,0.4429991]
[1721017815052,0.38568798,62765.0,62764.0,0.4429991]
[1721017815734,0.5052027,62765.0,62764.0,0.4429991]
[1721017816702,0.38568798,62765.0,62764.0,0.4429991]
[1721017817643,0.38568798,62765.0,62764.0,0.45352316]
[1721017818109,0.38568798,62765.0,62764.0,0.16673516]
[1721017818310,0.24872529,62765.0,62764.0,0.02334116]
[1721017818539,0.44577996,62765.0,62764.0,0.02334116]
[1721017818891,0.44577996,62765.0,62764.0,0.0128171]
[1721017819723,0.44884349,62765.0,62764.0,0.0128171]
[1721017820061,0.44577996,62765.0,62764.0,0.0128171]
[1721017820465,0.44884349,62765.0,62764.0,0.0128171]
[1721017820986,0.44577996,62765.0,62764.0,0.0128171]
[1721017821364,0.58922389,62765.0,62764.0,0.0128171]
[1721017821610,0.71226008,62765.0,62764.0,0.0128171]
[1721017821790,0.71226008,62765.0,62758.0,0.009174]
[1721017821791,0.263405,62759.0,62758.0,0.009174]
[1721017821995,0.143419,62753.0,62751.0,0.002]
[1721017822238,1.22042592,62753.0,62751.0,0.002]
[1721017822441,1.36379732,62753.0,62751.0,0.002]
[1721017822994,0.95695932,62753.0,62751.0,0.002]
[1721017823200,0.67004322,62753.0,62751.0,0.002]
[1721017823454,0.81346222,62753.0,62751.0,0.002]
[1721017823808,0.52894322,62753.0,62752.0,0.581038]
[1721017824013,0.38560232,62753.0,62752.0,0.008474]
[1721017824191,0.38560232,62753.0,62752.0,0.0190983]
[1721017824421,0.48116512,62753.0,62752.0,0.0190983]
[1721017824792,0.48116512,62753.0,62752.0,0.0184983]
[1721017824793,0.67036979,62753.0,62752.0,0.0184983]
[1721017824904,0.78982415,62753.0,62752.0,0.0184983]
[1721017825106,0.95721172,62753.0,62752.0,0.007874]
[1721017825346,1.07664754,62753.0,62752.0,0.007774]
[1721017825538,0.78980954,62753.0,62752.0,0.007774]
[1721017825741,0.67037372,62753.0,62752.0,0.007774]
[1721017826463,1.24404972,62753.0,62752.0,0.007774]
[1721017826663,1.36404972,62753.0,62752.0,0.007774]
[1721017827779,1.22692029,62753.0,62752.0,0.007774]
[1721017827988,1.36363101,62753.0,62752.0,0.007774]
[1721017829002,1.37345121,62753.0,62752.0,0.007774]
[1721017829603,1.66028921,62753.0,62752.0,0.007774]
[1721017830110,1.37345121,62753.0,62752.0,0.007774]
[1721017831034,1.37348885,62753.0,62752.0,0.007774]
[1721017831237,1.25348885,62753.0,62752.0,0.007774]
[1721017831462,0.96665085,62753.0,62752.0,0.007774]
[1721017831862,1.37348885,62753.0,62752.0,0.007774]
[1721017833837,1.25348885,62753.0,62752.0,0.007774]
[1721017834435,1.25287058,62753.0,62752.0,0.007774]
[1721017834637,1.37287058,62753.0,62752.0,0.007774]
[1721017834854,1.37286953,62753.0,62752.0,0.007774]
[1721017835879,1.75970753,62753.0,62752.0,0.007774]
[1721017837385,1.36885,62752.0,62742.0,0.009174]
[1721017837605,0.58659523,62743.0,62742.0,0.009174]
[1721017837805,0.7693582,62743.0,62742.0,0.009174]
[1721017837946,0.8928002,62743.0,62742.0,0.01990689]
[1721017838146,0.89260844,62743.0,62742.0,0.009174]
[1721017838378,0.77348941,62743.0,62742.0,0.009174]
[1721017839325,0.86870653,62743.0,62742.0,0.009174]
[1721017840479,0.77348941,62743.0,62742.0,0.009174]
[1721017840675,0.63687553,62743.0,62742.0,0.009174]
[1721017840885,0.89400804,62743.0,62742.0,0.009174]
[1721017841297,0.85612059,62743.0,62742.0,0.009174]
[1721017841497,0.77501631,62743.0,62742.0,0.009174]
[1721017842319,0.87017268,62743.0,62742.0,0.009174]
[1721017842829,0.72673068,62743.0,62742.0,0.009174]
[1721017843617,0.87017268,62743.0,62742.0,0.009174]
[1721017843819,0.72673068,62743.0,62742.0,0.009174]
[1721017844183,0.86904584,62743.0,62742.0,0.009174]
[1721017844383,0.63687553,62743.0,62742.0,0.009174]
[1721017844579,0.86903084,62743.0,62742.0,0.009174]
[1721017845208,0.77390717,62743.0,62742.0,0.009174]
[1721017846366,0.84521734,62743.0,62742.0,0.009174]
[1721017847170,0.8463946,62743.0,62742.0,0.009174]
[1721017847779,0.7029526,62743.0,62742.0,0.009174]
[1721017847912,0.56783237,62743.0,62742.0,0.009174]
[1721017848112,0.4965222,62743.0,62742.0,0.01999207]
[1721017848317,0.3965222,62743.0,62742.0,0.01999207]
[1721017848516,0.37419691,62743.0,62742.0,0.45032507]
[1721017848773,0.37419691,62743.0,62742.0,0.44679164]
[1721017849312,0.37419691,62743.0,62742.0,0.15990264]
[1721017850450,0.37605062,62743.0,62742.0,0.15990264]
[1721017850985,0.4010101,62743.0,62742.0,0.15990264]
[1721017851530,0.4010101,62743.0,62742.0,0.01645864]
[1721017852239,0.4655101,62743.0,62742.0,0.01645864]
[1721017853245,0.4010101,62743.0,62742.0,0.01645864]
[1721017853405,0.4821101,62743.0,62742.0,0.01645864]
[1721017853614,0.48548949,62743.0,62742.0,0.01645864]
[1721017853832,0.97390178,62743.0,62742.0,0.01645864]
[1721017854038,1.02147504,62743.0,62742.0,0.009174]
[1721017854191,0.97390352,62743.0,62742.0,0.009174]
[1721017854795,1.09390352,62743.0,62742.0,0.009174]
[1721017855244,1.1652608,62743.0,62742.0,0.009174]
[1721017855393,1.38078752,62743.0,62742.0,0.009174]
[1721017855593,1.45217929,62743.0,62742.0,0.009174]
[1721017855880,1.38078752,62743.0,62742.0,0.009174]
[1721017856086,1.47680186,62743.0,62742.0,0.009174]
[1721017856408,1.38161752,62743.0,62742.0,0.009174]
[1721017857181,1.4766555,62743.0,62742.0,0.009174]
[1721017857579,1.47661981,62743.0,62742.0,0.009174]
[1721017857775,1.38142769,62743.0,62742.0,0.009174]
[1721017857979,1.50041784,62743.0,62742.0,0.009174]
[1721017860207,1.50075383,62743.0,62742.0,0.009174]
[1721017861366,1.38169008,62743.0,62742.0,0.009174]
[1721017861567,1.66857408,62743.0,62742.0,0.009174]
[1721017862127,1.66857408,62743.0,62719.0,0.009174]
[1721017862128,0.70659799,62743.0,62719.0,0.009174]
[1721017862341,0.70659799,62743.0,62711.0,0.002]
[1721017862342,0.844839,62712.0,62711.0,0.002]
[1721017862539,1.888291,62712.0,62711.0,0.002]
[1721017862749,1.888291,62712.0,62698.0,0.4863143]
[1721017862750,0.43065492,62712.0,62698.0,0.4863143]
[1721017862954,0.43065492,62712.0,62695.0,0.06396]
[1721017862955,0.369933,62703.0,62695.0,0.06396]
[1721017863155,1.18537299,62703.0,62695.0,0.06396]
[1721017863354,0.507072,62702.0,62681.0,0.48950473]
[1721017863601,1.08483552,62701.0,62688.0,0.009174]
[1721017863798,1.17218445,62701.0,62688.0,0.009174]
[1721017864194,0.88510845,62701.0,62688.0,0.009174]
[1721017864870,0.88510845,62701.0,62685.0,0.143574]
[1721017865097,0.88510845,62701.0,62687.0,0.009174]
[1721017865680,0.88855047,62701.0,62687.0,0.009174]
[1721017865902,1.00855047,62701.0,62687.0,0.009174]
[1721017866104,0.89150173,62701.0,62687.0,0.009174]
[1721017866553,0.12,62692.0,62687.0,0.009174]
[1721017866747,0.12,62692.0,62679.0,0.153474]
[1721017866748,1.11800373,62692.0,62679.0,0.153474]
[1721017866971,1.11800373,62692.0,62679.0,0.098448]
[1721017867174,0.83088673,62692.0,62679.0,0.098448]
[1721017867522,0.71088673,62692.0,62679.0,0.098448]
[1721017867703,0.28021173,62692.0,62679.0,0.098448]
[1721017867880,0.28021173,62692.0,62681.0,0.287165]
[1721017868078,0.28021173,62692.0,62686.0,0.143571]
[1721017868283,0.28021173,62692.0,62685.0,0.143574]
[1721017868514,0.42376973,62692.0,62683.0,0.143578]
[1721017868692,0.42376973,62692.0,62679.0,0.009174]
[1721017868693,1.11801462,62692.0,62679.0,0.009174]
[1721017869161,1.11701462,62692.0,62679.0,0.152762]
[1721017869442,0.82989762,62692.0,62680.0,0.143585]
[1721017869641,0.54278062,62692.0,62680.0,0.143584]
[1721017869849,0.82989762,62692.0,62681.0,0.143582]
[1721017870056,0.54278062,62692.0,62682.0,0.14358]
[1721017870646,0.82989762,62692.0,62681.0,0.143583]
[1721017871050,0.27922262,62692.0,62685.0,0.143574]
[1721017871250,0.2254,62692.0,62691.0,0.145561]
[1721017871484,0.23528994,62692.0,62691.0,0.002]
[1721017871671,0.23528994,62692.0,62691.0,0.289122]
[1721017871870,0.23528994,62692.0,62691.0,0.002]
[1721017873681,0.23528994,62692.0,62691.0,0.145561]
[1721017874366,0.23528994,62692.0,62691.0,0.002]
[1721017876278,0.23628994,62692.0,62691.0,0.002]
[1721017878223,0.2264,62699.0,62698.0,0.143545]
[1721017878525,0.2264,62699.0,62698.0,0.430635]
[1721017878727,0.0644,62710.0,62698.0,0.430635]
[1721017878728,0.0644,62710.0,62698.0,0.717725]
[1721017878934,0.2264,62703.0,62693.0,0.40711]
[1721017879140,0.2264,62703.0,62702.0,0.287072]
[1721017880186,0.2264,62703.0,62702.0,0.71768]
[1721017882876,0.2264,62703.0,62696.0,0.287095]
[1721017883098,0.2264,62703.0,62691.0,0.1425]
[1721017883099,0.2264,62697.0,62694.0,0.287106]
[1721017883349,0.2264,62697.0,62696.0,0.143549]
[1721017883585,0.2264,62697.0,62696.0,0.430648]
[1721017884118,0.2264,62697.0,62691.0,0.002]
[1721017884119,0.2264,62697.0,62691.0,0.28912]
[1721017884323,0.14355,62696.0,62691.0,0.002]
[1721017884768,0.369949,62697.0,62691.0,0.002]
[1721017885001,0.12,62694.0,62691.0,0.002]
[1721017885224,0.0664,62695.0,62691.0,0.002]
[1721017885225,0.12,62692.0,62691.0,0.002]
[1721017885618,0.05447065,62692.0,62691.0,0.002]
[1721017888006,0.143554,62694.0,62691.0,0.002]
[1721017888207,0.05346951,62693.0,62691.0,0.002]
[1721017888492,0.05346643,62692.0,62691.0,0.002]
[1721017888645,0.05346643,62692.0,62691.0,0.002913]
[1721017888884,0.05346643,62693.0,62691.0,0.002913]
[1721017889080,0.05346643,62692.0,62691.0,0.002913]
[1721017889282,0.06,62693.0,62691.0,0.002913]
[1721017889503,0.05346643,62692.0,62691.0,0.002913]
[1721017891122,0.05346643,62694.0,62691.0,0.002913]
[1721017891325,0.05361223,62693.0,62691.0,0.002913]
[1721017891648,0.05361223,62692.0,62691.0,0.002913]
[1721017892291,0.14254491,62694.0,62691.0,0.002913]
[1721017892569,0.20254491,62694.0,62691.0,0.002913]
[1721017892772,0.14254491,62693.0,62691.0,0.002913]
[1721017892992,0.33739874,62693.0,62691.0,0.002913]
[1721017893106,0.14254491,62692.0,62691.0,0.002913]
[1721017893309,0.14254491,62692.0,62689.0,0.009174]
[1721017893310,0.11,62690.0,62689.0,0.009174]
[1721017893507,0.11,62690.0,62679.0,0.009174]
[1721017893508,0.1434,62680.0,62679.0,0.009174]
[1721017893714,0.1434,62680.0,62679.0,0.152762]
[1721017893715,0.14254491,62680.0,62679.0,0.152762]
[1721017893913,0.46894491,62680.0,62679.0,0.449939]
[1721017894179,0.46894491,62680.0,62679.0,0.162762]
[1721017894335,0.38001223,62680.0,62679.0,0.162762]
[1721017894720,0.38001223,62680.0,62679.0,0.449939]
[1721017895144,0.38001223,62680.0,62679.0,0.162762]
[1721017896746,0.37982025,62680.0,62679.0,0.162762]
[1721017896943,0.37982025,62680.0,62679.0,0.449939]
[1721017897147,0.40480459,62680.0,62679.0,0.162762]
[1721017897556,0.40594648,62680.0,62679.0,0.162762]
[1721017898092,0.3061384,62680.0,62679.0,0.449939]
[1721017898261,0.3061384,62680.0,62679.0,0.162762]
[1721017899215,0.3061384,62680.0,62679.0,0.019174]
[1721017899635,0.31594611,62680.0,62679.0,0.162762]
[1721017899889,0.31594611,62680.0,62679.0,0.009174]
[1721017900056,0.60613211,62680.0,62679.0,0.009174]
[1721017900463,0.89330411,62680.0,62679.0,0.009174]
[1721017900672,0.83855005,62680.0,62679.0,0.009174]
[1721017900869,0.31566536,62680.0,62679.0,0.019174]
[1721017901437,0.31566536,62680.0,62679.0,0.009174]
[1721017902293,0.45925136,62680.0,62679.0,0.009174]
[1721017902497,1.03299536,62680.0,62679.0,0.009174]
[1721017902694,0.36965136,62680.0,62679.0,0.009174]
[1721017903019,1.03299434,62680.0,62679.0,0.009174]
[1721017903991,1.03251401,62680.0,62679.0,0.009174]
[1721017904191,0.94342193,62680.0,62679.0,0.009174]
[1721017904654,0.65624993,62680.0,62679.0,0.009174]
[1721017905007,0.06370759,62680.0,62679.0,0.152762]
[1721017905175,0.06370759,62680.0,62679.0,0.009174]
[1721017905332,0.08869288,62680.0,62679.0,0.009174]
[1721017905578,0.97374217,62680.0,62679.0,0.009174]
[1721017905735,0.143604,62672.0,62660.0,0.14363]
[1721017905967,0.143604,62672.0,62659.0,0.287264]
[1721017905968,0.50988917,62672.0,62667.0,0.01]
[1721017906123,0.89709817,62672.0,62667.0,0.01]
[1721017906527,0.89709817,62672.0,62668.0,0.01]
[1721017907242,0.84319829,62672.0,62668.0,0.01]
[1721017907448,0.89846517,62672.0,62668.0,0.01]
[1721017907811,0.40665187,62672.0,62670.0,0.01]
[1721017907998,0.38166658,62672.0,62671.0,0.012]
[1721017908149,0.05526658,62672.0,62671.0,1.35990138]
[1721017908353,0.2264,62678.0,62677.0,0.01]
[1721017908675,0.28164789,62678.0,62677.0,0.153593]
[1721017908874,0.28164789,62678.0,62677.0,0.440779]
[1721017909436,0.28164789,62678.0,62677.0,0.153593]
[1721017909635,0.28164789,62678.0,62677.0,0.440779]
[1721017909842,0.28164789,62678.0,62671.0,0.51186438]
[1721017909843,0.08023507,62678.0,62671.0,0.002]
[1721017910047,0.2264,62672.0,62671.0,0.442821]
[1721017910249,0.2264,62672.0,62671.0,0.155607]
[1721017910250,0.28164789,62672.0,62671.0,0.155607]
[1721017910459,0.56452812,62672.0,62671.0,0.002]
[1721017910714,0.85173712,62672.0,62671.0,0.002]
[1721017910916,1.0666006,62672.0,62671.0,0.002]
[1721017911338,1.3538096,62672.0,62671.0,0.002]
[1721017912272,1.3538096,62672.0,62660.0,0.143631]
[1721017912273,0.143616,62667.0,62660.0,0.143631]
[1721017912476,0.2264,62665.0,62660.0,0.407263]
[1721017912800,0.05492412,62664.0,62660.0,0.407263]
[1721017913028,0.05492412,62664.0,62663.0,0.143625]
[1721017913234,0.05492412,62664.0,62663.0,0.430875]
[1721017913546,0.2263,62665.0,62664.0,0.430869]
[1721017913787,0.2396,62672.0,62665.0,0.14362]
[1721017913788,0.2264,62667.0,62665.0,0.14362]
[1721017913994,0.05484076,62666.0,62664.0,0.143622]
[1721017914213,0.2264,62667.0,62664.0,0.143622]
[1721017914580,0.2264,62667.0,62666.0,0.143618]
[1721017914785,0.2264,62667.0,62666.0,0.430855]
[1721017915946,0.2264,62667.0,62666.0,0.496855]
[1721017916151,0.2264,62679.0,62671.0,0.06]
[1721017916291,0.2264,62679.0,62678.0,0.430773]
[1721017916894,0.2264,62679.0,62673.0,0.287203]
[1721017917105,0.2264,62679.0,62663.0,0.08105238]
[1721017917106,0.0607,62676.0,62666.0,0.1457]
[1721017917331,0.2264,62672.0,62668.0,0.143613]
[1721017917539,0.2264,62672.0,62660.0,0.0128]
[1721017917738,0.2264,62672.0,62654.0,0.2766222]
[1721017917739,0.2264,62672.0,62671.0,0.143607]
[1721017918185,0.2264,62672.0,62671.0,0.430821]
[1721017918386,0.3811091,62678.0,62673.0,0.143601]
[1721017918562,0.1072,62676.0,62670.0,0.143608]
[1721017918964,0.1072,62675.0,62670.0,0.143608]
[1721017919412,0.2264,62672.0,62670.0,0.143608]
[1721017919613,0.2264,62672.0,62671.0,0.143607]
[1721017919813,0.0475091,62678.0,62677.0,0.143593]
[1721017920084,0.0723949,62678.0,62677.0,0.430779]
[1721017920280,0.1321858,62678.0,62674.0,0.1436]
[1721017920407,0.2264,62675.0,62671.0,0.288125]
[1721017920608,0.2264,62675.0,62674.0,0.1436]
[1721017921953,0.2264,62675.0,62671.0,0.000913]
[1721017922140,0.2264,62675.0,62671.0,0.144518]
[1721017922342,0.2264,62675.0,62672.0,0.143603]
[1721017922541,0.2264,62675.0,62671.0,0.000913]
[1721017922542,0.3663,62675.0,62671.0,0.000913]
[1721017922783,0.3663,62675.0,62673.0,0.143601]
[1721017922940,0.4735,62675.0,62671.0,0.000913]
[1721017923144,0.3663,62675.0,62672.0,0.143604]
[1721017923528,0.2264,62675.0,62674.0,0.1436]
[1721017923730,0.25138531,62675.0,62674.0,0.1436]
[1721017924042,0.25138531,62675.0,62672.0,0.430811]
[1721017924252,0.2264,62675.0,62673.0,0.143602]
[1721017924983,0.02498553,62674.0,62672.0,0.143604]
[1721017925573,0.02498553,62674.0,62671.0,0.144519]
[1721017925745,0.1072,62672.0,62671.0,0.000913]
[1721017925946,0.70289985,62672.0,62671.0,0.000913]
[1721017926147,0.27198685,62672.0,62671.0,0.000913]
[1721017926347,0.02498685,62672.0,62671.0,0.14452]
[1721017926534,0.2264,62675.0,62671.0,0.14452]
[1721017926941,0.2264,62675.0,62672.0,0.143603]
[1721017926942,0.02498559,62674.0,62672.0,0.143603]
[1721017927148,0.02498559,62674.0,62673.0,0.143602]
[1721017927407,0.02498559,62674.0,62673.0,0.430807]
[1721017927408,0.16974242,62674.0,62673.0,0.430807]
[1721017927761,0.16974242,62674.0,62673.0,0.718012]
[1721017927963,0.16974242,62674.0,62673.0,0.143602]
[1721017928347,0.16974242,62674.0,62671.0,0.000913]
[1721017928550,0.2264,62675.0,62671.0,0.000913]
[1721017928551,0.16972989,62673.0,62671.0,0.000913]
[1721017928837,0.05482936,62672.0,62671.0,0.431734]
[1721017928991,0.05470682,62672.0,62671.0,0.288127]
[1721017929191,0.07970812,62672.0,62671.0,0.431734]
[1721017929424,0.16948504,62672.0,62671.0,0.431734]
[1721017929665,0.07972177,62672.0,62671.0,0.431734]
[1721017930993,0.07972177,62672.0,62671.0,0.718948]
[1721017931956,0.07972177,62672.0,62671.0,0.431734]
[1721017932167,0.16941845,62672.0,62671.0,0.431734]
[1721017932670,0.11479807,62672.0,62671.0,0.431734]
[1721017932968,0.02498523,62672.0,62671.0,0.431734]
[1721017933112,0.16959824,62672.0,62671.0,0.431734]
[1721017933760,0.16959824,62672.0,62671.0,0.718948]
[1721017933963,0.0797854,62672.0,62671.0,1.018962]
[1721017934164,0.0797854,62672.0,62671.0,1.348462]
[1721017934165,0.05480017,62672.0,62671.0,1.348462]
[1721017934399,0.00083,62679.0,62678.0,0.385891]
[1721017934783,0.05701953,62679.0,62678.0,1.034637]
[1721017934993,0.05701953,62679.0,62678.0,1.04508842]
[1721017935192,0.05701953,62679.0,62678.0,1.04058842]
[1721017935867,0.05748015,62679.0,62678.0,1.04058842]
[1721017936055,0.05748015,62679.0,62678.0,1.01558842]
[1721017936258,0.05748022,62679.0,62678.0,1.01558842]
[1721017936466,0.05748022,62679.0,62678.0,0.72840642]
[1721017937972,0.05748022,62679.0,62678.0,0.15404242]
[1721017938209,0.05748022,62679.0,62678.0,0.44122442]
[1721017938793,0.05748022,62679.0,62678.0,0.15404242]
[1721017939023,0.05748022,62679.0,62678.0,0.01045142]
[1721017939024,0.30799609,62679.0,62678.0,0.01045142]
[1721017939229,0.21189931,62679.0,62672.0,0.143603]
[1721017939449,0.0652,62672.0,62671.0,0.000913]
[1721017939586,0.12167809,62672.0,62671.0,0.000913]
[1721017940431,0.35226931,62672.0,62671.0,0.000913]
[1721017940656,0.30477809,62672.0,62671.0,0.000913]
[1721017940927,0.49243661,62672.0,62671.0,0.000913]
[1721017941351,0.42119978,62672.0,62671.0,0.000913]
[1721017941490,0.38533661,62672.0,62671.0,0.000913]
[1721017942092,0.23739259,62672.0,62671.0,0.000913]
[1721017942288,0.38561522,62672.0,62671.0,0.000913]
[1721017942714,0.38561522,62672.0,62651.0,0.002]
[1721017942715,0.76768795,62672.0,62651.0,0.002]
[1721017942916,0.76768795,62672.0,62654.0,0.4897222]
[1721017942917,0.1071,62657.0,62654.0,0.4897222]
[1721017943114,0.287275,62658.0,62654.0,0.4897222]
[1721017943115,0.2264,62655.0,62654.0,0.0126222]
[1721017943318,0.28305895,62655.0,62654.0,0.0126222]
[1721017943536,0.28305895,62655.0,62654.0,0.1562682]
[1721017943537,0.05665895,62655.0,62654.0,0.1562682]
[1721017943895,0.05665895,62655.0,62654.0,0.7436522]
[1721017944172,0.05665895,62655.0,62654.0,0.7308522]
[1721017944703,0.05665895,62655.0,62654.0,0.7436522]
[1721017945197,0.05665895,62655.0,62654.0,0.7308522]
[1721017945356,0.0636,62659.0,62654.0,0.7308522]
[1721017945357,0.11106443,62659.0,62658.0,0.430909]
[1721017945560,0.23205293,62659.0,62654.0,0.0126222]
[1721017945777,0.21599676,62658.0,62655.0,0.143642]
[1721017945980,0.21599676,62658.0,62656.0,0.143639]
[1721017945981,0.06701974,62657.0,62656.0,0.143639]
[1721017946181,0.06701974,62657.0,62656.0,0.15098588]
[1721017946578,0.06701974,62657.0,62656.0,0.00734688]
[1721017946802,0.1071,62656.0,62654.0,0.0126222]
[1721017946983,0.29331974,62655.0,62654.0,0.0126222]
[1721017947177,0.29331974,62655.0,62654.0,0.019973]
[1721017947382,0.34083772,62655.0,62654.0,0.019973]
[1721017947586,0.44219908,62655.0,62654.0,0.019973]
[1721017947974,0.58584208,62655.0,62654.0,0.0126222]
[1721017948176,0.2071,62652.0,62651.0,0.002]
[1721017948418,0.683586,62647.0,62646.0,0.064109]
[1721017948669,1.70628053,62647.0,62646.0,0.0001]
[1721017948874,1.8300967,62647.0,62646.0,0.0001]
[1721017949077,1.112865,62645.0,62640.0,0.0003]
[1721017949214,1.544976,62645.0,62640.0,0.0003]
[1721017949410,1.484976,62645.0,62640.0,0.0003]
[1721017949637,1.63981644,62645.0,62640.0,0.0003]
[1721017950012,1.63981541,62645.0,62640.0,0.0003]
[1721017950245,1.63981558,62645.0,62640.0,0.0003]
[1721017950480,1.63973882,62645.0,62644.0,1.88018499]
[1721017951079,1.544976,62645.0,62644.0,1.88018499]
[1721017951295,1.63973882,62645.0,62644.0,1.88018499]
[1721017951451,1.544976,62645.0,62644.0,1.88018499]
[1721017951652,1.53232997,62645.0,62644.0,1.88018499]
[1721017951886,0.64414966,62645.0,62644.0,1.88018499]
[1721017952088,0.88531556,62645.0,62644.0,1.88018499]
[1721017952518,1.17264856,62645.0,62644.0,1.88018499]
[1721017952718,1.17254856,62645.0,62644.0,1.88018499]
[1721017953088,0.676499,62645.0,62644.0,1.88018499]
[1721017953672,0.2455,62645.0,62644.0,1.88018499]
[1721017953879,0.683499,62645.0,62644.0,1.88018499]
[1721017954689,0.396166,62645.0,62644.0,1.88018499]
[1721017955303,0.0097533,62648.0,62644.0,1.88018499]
[1721017955533,0.0638,62650.0,62644.0,1.88018499]
[1721017955738,0.0638,62650.0,62649.0,0.430972]
[1721017955941,0.0638,62650.0,62649.0,0.718287]
[1721017956159,0.06360798,62650.0,62649.0,0.718287]
[1721017956357,0.06360798,62650.0,62649.0,0.430972]
[1721017957130,0.0801,62652.0,62650.0,0.28731]
[1721017957131,0.0692348,62651.0,62650.0,0.28731]
[1721017957328,0.06923541,62651.0,62650.0,0.430965]
[1721017957560,0.0801,62667.0,62655.0,0.0129]
[1721017957762,0.0801,62667.0,62666.0,0.143618]
[1721017957947,0.1489221,62667.0,62666.0,0.430855]
[1721017958233,0.0688221,62667.0,62666.0,1.01277383]
[1721017958469,0.0793,62676.0,62675.0,0.430792]
[1721017958661,0.0793,62676.0,62666.0,0.00744483]
[1721017958662,0.143616,62667.0,62666.0,0.00744483]
[1721017958795,0.06904485,62667.0,62666.0,0.430854]
[1721017958990,0.143601,62674.0,62668.0,0.143612]
[1721017959176,0.1693,62672.0,62668.0,0.143612]
[1721017959376,0.107,62668.0,62662.0,0.143626]
[1721017959607,0.06904585,62667.0,62662.0,0.143626]
[1721017959808,0.06904585,62667.0,62663.0,0.143625]
[1721017961100,0.0698858,62666.0,62663.0,0.143625]
[1721017961277,0.106,62661.0,62650.0,0.0129]
[1721017961479,0.0623,62672.0,62648.0,0.0423]
[1721017961480,0.106,62664.0,62660.0,0.143632]
[1721017961681,0.106,62662.0,62660.0,0.143632]
[1721017961840,0.143619,62666.0,62660.0,0.143632]
[1721017961841,0.07030003,62661.0,62660.0,0.143632]
[1721017962037,0.07030003,62663.0,62660.0,0.143632]
[1721017962463,0.07030003,62663.0,62661.0,0.00742272]
[1721017963475,0.07030003,62663.0,62661.0,0.15105172]
[1721017964093,0.07030003,62663.0,62662.0,0.143627]
[1721017964414,0.00306353,62669.0,62668.0,0.43084]
[1721017964566,0.0623,62672.0,62668.0,0.43084]
[1721017964567,0.0623,62672.0,62671.0,0.143607]
[1721017964803,0.0793,62676.0,62671.0,0.00739157]
[1721017964804,0.06962812,62673.0,62671.0,0.00739157]
[1721017965002,0.0793,62676.0,62675.0,0.430792]
[1721017965225,0.14894233,62676.0,62675.0,0.72537073]
[1721017965563,0.14894233,62676.0,62675.0,0.43817573]
[1721017965796,0.39853733,62676.0,62675.0,0.00738373]
[1721017966213,0.25494233,62676.0,62670.0,0.143607]
[1721017966418,0.06964233,62675.0,62668.0,0.143612]
[1721017966567,0.06964233,62674.0,62671.0,0.00734963]
[1721017966772,0.106,62672.0,62667.0,0.287231]
[1721017966971,0.0793,62676.0,62661.0,0.287259]
[1721017966972,0.106,62664.0,62661.0,0.287259]
[1721017967176,0.106,62664.0,62662.0,0.143627]
[1721017967177,0.06953486,62663.0,62662.0,0.143627]
[1721017967432,0.106,62664.0,62663.0,0.143625]
[1721017967635,0.17552556,62664.0,62663.0,0.143625]
[1721017967793,0.106,62664.0,62663.0,0.143625]
[1721017967988,0.17620983,62664.0,62663.0,0.143625]
[1721017968976,0.17620983,62664.0,62663.0,0.138625]
[1721017969791,0.106,62662.0,62661.0,0.143629]
[1721017970157,0.106,62662.0,62657.0,0.287274]
[1721017970158,0.106,62660.0,62659.0,0.143634]
[1721017970359,0.17520983,62660.0,62659.0,0.143553]
[1721017970514,0.07008444,62660.0,62659.0,0.143553]
[1721017970715,0.06981759,62660.0,62659.0,0.143553]
[1721017970917,0.06981759,62660.0,62659.0,0.1428645]
[1721017971339,0.06981759,62660.0,62659.0,0.1423785]
[1721017971546,0.06981759,62660.0,62659.0,0.1403535]
[1721017972086,0.06981759,62660.0,62659.0,0.1400943]